Cogmind - Beta 14 @@@ ROGUE MODE // 2025.03.15 @ 07:52:36 Player: LightKnight Result: Destroyed by as-76304 with Assembled Blade Performance ------------- Evolutions (0) 0 Regions Visited (3) 600 Robots Destroyed (13) 65 Value Destroyed (290) 290 Prototype IDs (23) 460 Alien Tech Used (0) 0 Bonus (342) 342 TOTAL SCORE: 1757 Bonus ------- Follower Combat Kills 42 Aligned with FarCom 300 Cogmind --------- Core Integrity 0/250 Matter 230/300 Energy 81/160 System Corruption 1% Temperature Warm (112) Movement Walking (190) Ox1 Location -10/Exiles Parts ------- > --- POWER (1) -------- Light Nuclear Core > --- PROPULSION (2) --- Aluminum Leg Aluminum Leg > --- UTILITY (2) ------ Heat Sink Small Storage Unit > --- WEAPON (2) ------- YOLO Cannon > --- INVENTORY (8) ---- Ion Engine Ion Engine Light Treads Light Treads Aluminum Leg Terrain Scanner Peak State ------------ > --- POWER ------------ Light Nuclear Core > --- PROPULSION ------- Aluminum Leg Aluminum Leg > --- UTILITY ---------- Heat Sink Small Storage Unit > --- WEAPON ----------- YOLO Cannon > --- INVENTORY -------- Ion Engine Ion Engine Light Treads Light Treads Aluminum Leg Terrain Scanner [Rating: 27] Favorites ----------- Power Light Nuclear Core Engine Ion Engine Power Core Light Nuclear Core Propulsion Aluminum Leg Leg Aluminum Leg Utility Small Storage Unit Device Terrain Scanner Storage Small Storage Unit Protection Propulsion Shielding Weapon EM Pulse Gun Energy Gun EM Pulse Gun Energy Cannon Guided Plasma Cannon Build | -11 -10 -10 -10 ------- Run | Yrd Mat Min Exi Slots Evolved . | . . . . Power . | . . . . Propulsion . | . . . . Utility . | . . . . Weapon . | . . . . Parts Attached 11 | 2 1 4 4 Power 2 | 1 . 1 . Engine 1 | 1 . . . Core 1 | . . 1 . Reactor . | . . . . Propulsion 1 | . . 1 . Treads . | . . . . Leg 1 | . . 1 . Wheel . | . . . . Hover . | . . . . Flight . | . . . . Utility 4 | . 1 1 2 Device 3 | . . 1 2 Storage . | . . . . Processor . | . . . . Hackware . | . . . . Protection 1 | . 1 . . Artifact . | . . . . Weapon 4 | 1 . 1 2 Energy Gun 2 | 1 . 1 . Energy Cannon 2 | . . . 2 Ballistic Gun . | . . . . Ballistic Cannon . | . . . . Launcher . | . . . . Special Weapon . | . . . . Impact Weapon . | . . . . Slashing Weapon . | . . . . Piercing Weapon . | . . . . Special Melee Weapon . | . . . . Unidentified Prototypes . | . . . . Parts Lost 1 | . . 1 . Power . | . . . . Propulsion . | . . . . Utility . | . . . . Weapon 1 | . . 1 . Highest Loss Streak 1 | . . 1 . To Critical Strikes . | . . . . Average Slot Usage (%) 89 | . 91 100 82 Engine 4 | . 14 9 . Core 9 | . . 4 14 Leg 28 | . 28 28 28 Device 8 | . . 3 12 Storage 14 | . 14 14 14 Protection 4 | . 5 10 . Energy Gun 12 | . 28 28 . Energy Cannon 6 | . . . 12 Peak Build Rating 27 | 6 7 9 27 Average Rating 11 | 6 6 7 14 On Entrance 6 | 6 6 7 7 Naked Turns . | . . . . Heaviest Build 21 | 14 15 15 21 Greatest Support 20 | 20 20 20 20 Greatest Overweight (x) 1 | . . . 1 Average Overweight (x) . | . . . . Largest Inventory Capacity 8 | 8 8 8 8 Average Capacity 8 | 8 8 8 8 Most Carried 8 | 6 8 8 8 Average Carried 7 | 6 6 7 7 Final Capacity 8 | 8 8 8 8 Final Carried 8 | 6 8 8 6 Class Distribution -------------------- 100% | Mutant Dominant Class ---------------- Mutant | -10/Materials Mutant | -10/Mines Mutant | -10/Exiles Resources | -11 -10 -10 -10 ----------- Run | Yrd Mat Min Exi Matter Collected 285 | 220 . 65 . Remotely . | . . . . Salvage Created 469 | . 220 229 20 Parts 21 | . 7 14 . Haulers Intercepted . | . . . . Recyclers Shooed . | . . . . Parts Field Recycled . | . . . . Retrieved Matter . | . . . . Parts Self-Destructed . | . . . . Prevented . | . . . . Kills | -11 -10 -10 -10 ------- Run | Yrd Mat Min Exi Combat Hostiles Destroyed 12 | . 3 7 2 Guns 8 | . 2 6 . AOE 3 | . 1 . 2 Classes Destroyed 6 | . 3 2 1 Worker 1 | . . 1 . Recycler 1 | . 1 . . Watcher 1 | . 1 . . Swarmer 4 | . . 4 . Grunt 6 | . 3 3 . Assembled 2 | . . . 2 Best Kill Streak 4 | . 4 4 2 Combat Bots Only 3 | . 3 3 2 Max Kills in Single Turn 2 | . 2 1 1 Gunslinging . | . . . . Exploded 1 | . 1 . 1 Melee . | . . . . Uniques/NPCs Destroyed . | . . . . Combat | -11 -10 -10 -10 -------- Run | Yrd Mat Min Exi Hostile Shots Fired 55 | . 11 39 5 Missed 14 | . 2 12 . Damage Taken 628 | . 100 316 212 Core 253 | . 45 88 120 Absorbed by Shields . | . . . . Redirected to Shielding 22 | . . 22 . Core Remaining (%) 100 | 100 . . . Volleys Fired 40 | . 12 17 11 Largest 2 | . 2 2 1 Hottest 120 | . 80 90 120 Shots Fired 69 | . 24 34 11 Gun 58 | . 24 34 . Cannon 11 | . . . 11 Launcher . | . . . . Special . | . . . . Kinetic . | . . . . Thermal 14 | . . 3 11 Explosive . | . . . . Electromagnetic 55 | . 24 31 . Robot Hit Streak 8 | . 4 8 . Robot Miss Streak 5 | . 2 4 5 Penetration Max . | . . . . Secondary Targets 2 | . 1 1 . Max Gunslinging Chain 1 | . 1 1 . Shots Hit Robots 30 | . 14 16 . Core Hits 18 | . 7 9 2 Critical Kills . | . . . . Critical Parts Destroyed . | . . . . Critical Strikes 1 | . . 1 . Burn 1 | . . 1 . Melee Attacks . | . . . . Impact . | . . . . Slashing . | . . . . Piercing . | . . . . Sneak Attacks . | . . . . Combat Hostiles . | . . . . Follow-up Attacks . | . . . . Damage Inflicted 688 | . 333 238 117 Guns 462 | . 224 238 . Cannons . | . . . . Explosions 226 | . 109 . 117 Melee . | . . . . Ramming . | . . . . Kinetic . | . . . . Thermal 239 | . 109 13 117 Explosive . | . . . . Electromagnetic 449 | . 224 225 . Impact . | . . . . Slashing . | . . . . Piercing . | . . . . Highest Corruption 1 | . 1 1 1 Average Corruption 1 | . 1 1 1 Corruption Purged . | . . . . Corruption Blocked . | . . . . Effects 10 | . . 2 8 Message Errors 1 | . . . 1 Matter Fused 7 | . . 2 5 Energy Discharges 1 | . . . 1 Data Loss (major) 1 | . . . 1 Overload Shots . | . . . . Overflow Damage 9 | . 9 . . Projectiles . | . . . . Explosions 9 | . 9 . . Melee . | . . . . Knockbacks . | . . . . Impact . | . . . . Kinetic . | . . . . Secondary . | . . . . Self-Inflicted Damage 120 | . . . 120 Shots 2 | . . . 2 Rammed . | . . . . Targets Rammed . | . . . . Kicked . | . . . . Crushed . | . . . . Highest Temperature 314 | . 198 178 314 Average Temperature 86 | . 77 67 121 Received Heat Transfer 214 | . 54 120 40 Siege Activations . | . . . . Robots Corrupted 1 | . . 1 . Combat Hostiles 1 | . . 1 . Parts Fried 3 | . 2 1 . Impact Corruptions . | . . . . Robots Melted . | . . . . Combat Hostiles . | . . . . Parts Melted . | . . . . Heat Transferred 311 | . 200 111 . Parts Sabotaged . | . . . . Parts Stolen . | . . . . Parts Stripped . | . . . . Power Chain Reactions 3 | . 3 . . Alert | -11 -10 -10 -10 ------- Run | Yrd Mat Min Exi Peak Influence 194 | . 164 194 . Initial 63 | . . 63 . Average 92 | . 97 92 . Maximum Alert Level . | . . . . Low Security (%) 100 | 100 100 100 . Level 1 . | . . . . Level 2 . | . . . . Level 3 . | . . . . Level 4 . | . . . . Level 5 . | . . . . High Security . | . . . . Max Security . | . . . . Squads Dispatched 2 | . 2 . . Investigation 1 | . 1 . . Extermination . | . . . . Reinforcement 1 | . 1 . . Assault . | . . . . Garrison . | . . . . Intercept . | . . . . Searches Triggered . | . . . . Construction Impeded . | . . . . Haulers Reinforced . | . . . . Active Scanning Responses . | . . . . Cargo Convoy Interrupts . | . . . . Stealth | -11 -10 -10 -10 --------- Run | Yrd Mat Min Exi Distress Signals . | . . . . Communications Jammed . | . . . . Distress Signals . | . . . . Times Spotted 26 | . 7 10 9 Peak Tracking Total 10 | . 5 5 10 Tactical Retreats 1 | . 1 . . Traps | -11 -10 -10 -10 ------- Run | Yrd Mat Min Exi Traps Triggered 2 | . 2 . . Indirectly . | . . . . Trap Hack Attempts . | . . . . Triggered . | . . . . Disarmed . | . . . . Reprogrammed . | . . . . Reused . | . . . . Traps Extracted . | . . . . Installed . | . . . . Triggered . | . . . . Machines | -11 -10 -10 -10 ---------- Run | Yrd Mat Min Exi Machines Disabled 7 | . 1 . 6 Max in Single Turn 2 | . 1 . 2 Machines Repaired . | . . . . Machines Dismantled . | . . . . Machines Sabotaged . | . . . . Overloaded Fab Kills . | . . . . Hacking | -11 -10 -10 -10 --------- Run | Yrd Mat Min Exi Machines Accessed 2 | . 1 . 1 Terminals 1 | . 1 . . Fabricators . | . . . . Repair Stations . | . . . . Recycling Units . | . . . . Scanalyzers . | . . . . Garrison Access . | . . . . Total Hacks 3 | . 2 . 1 Successful 3 | . 2 . 1 Failed . | . . . . Catastrophic . | . . . . Database Lockouts . | . . . . Manual 1 | . . . 1 Terminals 2 | . 2 . . Fabricators . | . . . . Repair Stations . | . . . . Recycling Units . | . . . . Scanalyzers . | . . . . Garrison Access . | . . . . Terminal Hacks 3 | . 2 . 1 Locate Traps 1 | . 1 . . Recall Reinforcements 1 | . 1 . . Derelict Proto ID Bank 1 | . . . 1 Fabricator Hacks . | . . . . Repair Station Hacks . | . . . . Recycling Unit Hacks . | . . . . Scanalyzer . | . . . . Garrison Access Hacks . | . . . . Unauthorized Hacks . | . . . . Terminals . | . . . . Fabricators . | . . . . Repair Stations . | . . . . Recycling Units . | . . . . Scanalyzers . | . . . . Garrison Access . | . . . . Data Cores Recovered . | . . . . Used . | . . . . Hacking Detections 1 | . 1 . . Full Trace Events . | . . . . Feedback Events . | . . . . Feedback Blocked . | . . . . Robot Schematics Acquired . | . . . . Robots Built . | . . . . Authchips . | . . . . Time . | . . . . Total Robot Build Rating . | . . . . Part Schematics Acquired . | . . . . Parts Built . | . . . . Authchips . | . . . . Time . | . . . . Total Part Build Rating . | . . . . Parts Repaired . | . . . . Time . | . . . . Parts Recycled . | . . . . Recycled Matter . | . . . . Retrieved Matter . | . . . . Retrieved Components . | . . . . Parts Scanalyzed . | . . . . Part Schematics Acquired . | . . . . Parts Damaged . | . . . . Bothacking | -11 -10 -10 -10 ------------ Run | Yrd Mat Min Exi Used RIF Installer . | . . . . Robots Hacked . | . . . . Non-combat . | . . . . Combat . | . . . . Robot Hacks Applied . | . . . . Relay Couplers Released . | . . . . Fabnet Peak Effective % . | . . . . Robots Rewired . | . . . . Allies Hacked . | . . . . Hacks Repelled . | . . . . Allies | -11 -10 -10 -10 -------- Run | Yrd Mat Min Exi Total Allies 5 | . . 5 . Largest Group 5 | . . 5 5 Highest-Rated Group 82 | . . 82 82 Highest-Rated Ally 31 | . . 31 31 Total Orders . | . . . . Ally Attacks 42 | . . 15 27 Total Damage 424 | . . 109 315 Kills 7 | . . 2 5 Allies Corrupted 1 | . . . 1 Allies Melted . | . . . . Intel | -11 -10 -10 -10 ------- Run | Yrd Mat Min Exi Robot Analysis Total . | . . . . Derelict Logs Recovered 2 | . . 2 . Drone Launches . | . . . . Drone Recoveries . | . . . . Exploration | -11 -10 -10 -10 ------------- Run | Yrd Mat Min Exi Turns Passed 2199 | 6 195 804 1194 Spaces Moved 1224 | 3 126 604 491 Core . | . . . . Treads . | . . . . Legs 1224 | 3 126 604 491 Wheels . | . . . . Hover . | . . . . Flight . | . . . . Fastest Speed 120 | 120 120 120 120 Average Speed 136 | 120 120 120 161 Slowest Speed 190 | 120 120 120 190 Overloaded Moves . | . . . . Propulsion Burnouts . | . . . . Robots Hopped . | . . . . Cave-ins Triggered . | . . . . Exploration Rate (%) 53 | 2 38 96 77 Regions Visited 3 Branch Regions 2 Pre-discovered Areas . | . . . . Known Exits Taken . | . . . . Unknown Exits Taken 3 | 1 1 1 . Scrap Searched 3 | . . 3 . Spaces Dug . | . . . . Terrain Destroyed 59 | . 7 . 52 Melee . | . . . . Projectile 1 | . . . 1 AOE 58 | . 7 . 51 Terrain Rammed . | . . . . Walls Destroyed . | . . . . Machines Disabled . | . . . . Actions | -11 -10 -10 -10 --------- Run | Yrd Mat Min Exi Total 1682 | 4 146 652 880 Wait 391 | . 4 18 369 Move 1221 | 2 125 603 491 Hop . | . . . . Pick Up 6 | . 3 2 1 Fast Attach 3 | . 1 1 1 Attach 3 | . . 1 2 Detach 3 | . . 2 1 Swap 5 | 2 . 2 1 Drop 10 | . 1 6 3 Fire 40 | . 12 17 11 Melee . | . . . . Ram . | . . . . Kick . | . . . . Crush . | . . . . Escape Stasis . | . . . . Rewire . | . . . . Trap . | . . . . Miscellaneous . | . . . . Route ------- -11/Scrapyard -10/Materials -10/Mines (discovered 3 exits: [*Mat x2] / *Exi) -10/Exiles (discovered 1 exit: [*Min]) History --------- Turn | Location | Event 4 | -11/Scrapyard | Discovered new exit (range 3) 7 | -11/Scrapyard | Entered Materials 193 | -10/Materials | Discovered new exit (range 7) 202 | -10/Materials | Entered Mines 205 | -10/Mines | Learned Materials interactive machine intel 216 | -10/Mines | Discovered new exit (range 9) 281 | -10/Mines | Discovered new exit (range 9) 309 | -10/Mines | Build established: Mutant 409 | -10/Mines | Assisted by bots powering up and referring to "LRC-V3" 558 | -10/Mines | Deemed a non-threat by the Exiles lab entrance 755 | -10/Mines | Core integrity fell below 50% 982 | -10/Mines | Discovered new exit (range 5) 1006 | -10/Mines | Entered Exiles 1006 | -10/Exiles | Accompanied by 5 allies 1022 | -10/Exiles | Discovered new exit (range 15) 1036 | -10/Exiles | Led the pair of lost Derelicts to a safe place 1036 | -10/Exiles | Met 8R-AWN 1053 | -10/Exiles | Met EX-HEX 1092 | -10/Exiles | Met EX-BIN 1108 | -10/Exiles | Aligned with FarCom system 1110 | -10/Exiles | Given EX-Vault access code 1138 | -10/Exiles | Opened EX-Vault 1144 | -10/Exiles | Found Gui. Plasma Cannon 1173 | -10/Exiles | Warned to stay clear of 0b10 Research branches 1205 | -10/Exiles | Met EX-DEC 1243 | -10/Exiles | Visited The Gauntlet 1762 | -10/Exiles | Found YOLO Cannon 2152 | -10/Exiles | Attacked by the Exiles 2195 | -10/Exiles | Core integrity fell below 20% 2200 | -10/Exiles | Destroyed by as-76304 with Assembled Blade Last Messages --------------- 02151_ Testing Chamber Shield damaged. 02152_ EXILES: Hostile robot within lab perimeter. Defensive protocols time, folks! 02152_ GM-J5T destroyed. 02152_ W1-DM0 destroyed. 02158_ Testing Apparatus damaged. 02160_ AM-PHS destroyed. 02183_ EX-Generator explodes. 02183_ Testing Apparatus damaged. 02183_ Trooper 1a system corrupted by crushing effect. 02184_ Trooper 1a system terminally corrupted. 02186_ Mercenary 1a destroyed. 02191_ Trooper 1b Aluminum Leg severed. 02191_ Trooper 1b destroyed. 02193_ Dropped Gui. Plasma Cannon. 02194_ as-22661 destroyed. 02198_ Knocked back. 02198_ as-85328 destroyed. 02198_ Machine disabled. Map ----- +----------------------------------------------------+ | ????????????????????????????????###???##### ##? | | ??????????????????????????????????#?????#?## #?? | | ????????????????????????????????????#??????# #?? | | ???????????????????????##??????????##??????# #?? | | ??????????????????????#?????????#?#?#??????# #?? | | ?????????????###???#???#??#????#????????#??# #?# | | ???????????""""""???##"?""""???##"""""??#??# ##? | | ???????????"" "?##??"""""""##??""""""?##?# #?? | | ???????????" "??"?""""" "????" """"??## #?? | | ???????????"" "?#""#""" """####"" """???# #?? | | ???????????"" ""#""#"" ""????"" ""?#?# #?? | | ?????########"""###""###"""########"""###### ### | | ?????#"""" "" """"""" """""""" """""" """ | | ?????#" """""" """"""" | | ?????#""" %= | | ?????#"""" = = | | ?????#"" =% [ | | ?????#""" "" %!%%* "" | | ?????#"" """ """ [==%" """"" " """" " | | ?????########"""##;;;; ###""###"""########"""# | | ???????????"" ""# % "#""#"" ""#????" " | | ??????????#""" """# "#""#""" ""#????? "" | | ????????#?#" """ "# a """"#" " "#????""""" | | ??????????#""""""" aa "#""#"""""""#??#?? """ | | ??????????#"""""" ; aa "#?"#"""""""#?????"?"" | | ?????????????###;;;;;; @;###""#########????????# | | ?????????????## ; """"""#?##???#?##????#?? | | ??????????????## ; """"""??##??????????##?? | | ???????????????# ; ;;;;######????#??#?????????? | | ???????????????# ;;;;;; ###???#?#????##??????????? | | | | | | | | | | | | | | | | | | | | | | | | | | | | | | | | | | | | | | | | | +----------------------------------------------------+ Best States ------------- Heat Dissipation 35 Energy Generation 14 Energy Capacity 250 Matter Stores 300 Matter Capacity 300 Sight Range 16 Terrain Scan Range 14 Terrain Scan Density 10 Propulsion Shielding 33 Evasion (%) 55 Item Schematics ----------------- None Robot Schematics ------------------ None Fabricated ------------ Nothing Alien Tech Used ----------------- None Achievements -------------- None Challenges ------------ None Game ------ Seed TargetMassSabre Manual? 0 Play Time 00:13:11 Cumulative 197.5 hours Start 2025.03.15 @ 07:40:50 End 2025.03.15 @ 07:52:36 Sessions 1 Manual Loads 0 Difficulty Rogue Special Mode None Game No. 142 Rogue 142 Adventurer 0 Explorer 0 Win Type - Total 11 Types 11/0/0/0/0/0/0/0/0 Lore% 78 Gallery% 69 Achievement% 54 Wizard Run 0 Options --------- Layout 2 ASCII 1 Keyboard 1 Movement Arrows Keybinds 0 Fullscreen 1 Font 24/Proggy Map View 50x44 Zoom Use 0% Tactical HUD 1 Map Filters NONE Filters NONE Steam 1 RUN: f05d3bbb-1a39-4c98-b289-4ad5b1426819